{"text_format":"3","workbook":"xlsx","n_sheets":3,"sheets":["Kursteilnehmerliste","Kursliste","Kursteilnehmerdetails"],"not_rendered":{"images":2,"defined_names":8},"read":"whole","date_system":"1900"}

{"sheet":"Kursteilnehmerliste","index":0,"n_rows":8,"n_cols":13,"rows_kept":8,"merged":[[1,2,2,3],[1,4,1,11],[2,4,2,11],[6,12,8,16]]}
[]
[null,null,"Kursteilnehmerliste",null,"ZUR KURSLISTE"]
[{"$nulls":4},"ZU KURSTEILNEHMERDETAILS"]
[null,null,"NAME DES KURSTEILNEHMERS","E-MAIL","TELEFON (PRIVAT)","MOBILTELEFON","GEBURTSDATUM","NOTFALLKONTAKT","TELEFONNR. IM NOTFALL:","ARZT","TELEFONNR. DES ARZTES","  "]
[null,null,"Name 1","E-Mail-Adresse","Telefon (privat)","Mobiltelefon","Datum","Kontakt 1","Telefonnr. im Notfall","Arzt 1","Telefonnr. des Arztes"]
[null,null,"Name 2","E-Mail-Adresse","Telefon (privat)","Mobiltelefon","Datum","Kontakt 2","Telefonnr. im Notfall","Arzt 2","Telefonnr. des Arztes"]
[null,null,"Name 3","E-Mail-Adresse","Telefon (privat)","Mobiltelefon","Datum","Kontakt 3","Telefonnr. im Notfall","Arzt 3","Telefonnr. des Arztes",null,"Tipp: Zum Hinzufügen weiterer Kursteilnehmer drücken Sie in der letzten Zelle der Tabelle die TAB-TASTE."]
[null,null,"Name 4","E-Mail-Adresse","Telefon (privat)","Mobiltelefon","Datum","Kontakt 4","Telefonnr. im Notfall","Arzt 4","Telefonnr. des Arztes"]

{"sheet":"Kursliste","index":1,"n_rows":12,"n_cols":7,"rows_kept":12,"merged":[[1,2,2,2],[1,3,2,3],[1,4,1,6],[2,4,2,6]]}
[]
[null,null,"Kursliste","Institut für Grafikdesign","ZUR KURSTEILNEHMERLISTE"]
[{"$nulls":4},"ZU KURSTEILNEHMERDETAILS"]
[null,null,"KURS","Kursname","ANFANGSDATUM","Datum"]
[null,null,"KURSLEITER","Kursleiter 1","ENDDATUM","Datum"]
[null,null,"EINGESCHRIEBENE KURSTEILNEHMER",{"$f":"COUNTA(Kursteilnehmer_Liste[NAME DES KURSTEILNEHMERS])","v":4}]
[]
[null,null,"NAME DES KURSTEILNEHMERS","E-MAIL","TELEFON (PRIVAT)","MOBILTELEFON","  "]
[null,null,"Name 1",{"$f":"IFERROR(VLOOKUP(Kursteilnehmer_Liste[[#This Row],[NAME DES KURSTEILNEHMERS]],Kursteilnehmer[],2),\"\")","v":"E-Mail-Adresse"},{"$f":"IFERROR(VLOOKUP(Kursteilnehmer_Liste[[#This Row],[NAME DES KURSTEILNEHMERS]],Kursteilnehmer[],3),\"\")","v":"Telefon (privat)"},{"$f":"IFERROR(VLOOKUP(Kursteilnehmer_Liste[[#This Row],[NAME DES KURSTEILNEHMERS]],Kursteilnehmer[],4),\"\")","v":"Mobiltelefon"}]
[null,null,"Name 2",{"$f":"IFERROR(VLOOKUP(Kursteilnehmer_Liste[[#This Row],[NAME DES KURSTEILNEHMERS]],Kursteilnehmer[],2),\"\")","v":"E-Mail-Adresse"},{"$f":"IFERROR(VLOOKUP(Kursteilnehmer_Liste[[#This Row],[NAME DES KURSTEILNEHMERS]],Kursteilnehmer[],3),\"\")","v":"Telefon (privat)"},{"$f":"IFERROR(VLOOKUP(Kursteilnehmer_Liste[[#This Row],[NAME DES KURSTEILNEHMERS]],Kursteilnehmer[],4),\"\")","v":"Mobiltelefon"}]
[null,null,"Name 3",{"$f":"IFERROR(VLOOKUP(Kursteilnehmer_Liste[[#This Row],[NAME DES KURSTEILNEHMERS]],Kursteilnehmer[],2),\"\")","v":"E-Mail-Adresse"},{"$f":"IFERROR(VLOOKUP(Kursteilnehmer_Liste[[#This Row],[NAME DES KURSTEILNEHMERS]],Kursteilnehmer[],3),\"\")","v":"Telefon (privat)"},{"$f":"IFERROR(VLOOKUP(Kursteilnehmer_Liste[[#This Row],[NAME DES KURSTEILNEHMERS]],Kursteilnehmer[],4),\"\")","v":"Mobiltelefon"}]
[null,null,"Name 4",{"$f":"IFERROR(VLOOKUP(Kursteilnehmer_Liste[[#This Row],[NAME DES KURSTEILNEHMERS]],Kursteilnehmer[],2),\"\")","v":"E-Mail-Adresse"},{"$f":"IFERROR(VLOOKUP(Kursteilnehmer_Liste[[#This Row],[NAME DES KURSTEILNEHMERS]],Kursteilnehmer[],3),\"\")","v":"Telefon (privat)"},{"$f":"IFERROR(VLOOKUP(Kursteilnehmer_Liste[[#This Row],[NAME DES KURSTEILNEHMERS]],Kursteilnehmer[],4),\"\")","v":"Mobiltelefon"}]

{"sheet":"Kursteilnehmerdetails","index":2,"n_rows":13,"n_cols":4,"rows_kept":13,"merged":[[1,2,2,2],[1,3,1,4],[2,3,2,4],[3,2,3,3]]}
[]
[null,null,"Kursteilnehmerdetails","ZUR KURSTEILNEHMERLISTE"]
[{"$nulls":3},"ZUR KURSLISTE"]
[null,null,"TIPP: WÄHLEN SIE EINEN KURSTEILNEHMER AUS DER DROPDOWNLISTE IN ZELLE D5 AUS, UM DIE KURSTEILNEHMERDETAILS ZU AKTUALISIEREN."]
[null,null,"NAME DES KURSTEILNEHMERS","Name 1"]
[null,null,"E-MAIL",{"$f":"IFERROR(VLOOKUP(KursteilnehmerName,Kursteilnehmer[],2,FALSE),\"\")","v":"E-Mail-Adresse"}]
[null,null,"TELEFON (PRIVAT)",{"$f":"IFERROR(VLOOKUP(KursteilnehmerName,Kursteilnehmer[],3,FALSE),\"\")","v":"Telefon (privat)"}]
[null,null,"MOBILTELEFON",{"$f":"IFERROR(VLOOKUP(KursteilnehmerName,Kursteilnehmer[],4,FALSE),\"\")","v":"Mobiltelefon"}]
[null,null,"GEBURTSDATUM",{"$f":"IFERROR(VLOOKUP(KursteilnehmerName,Kursteilnehmer[],5,FALSE),\"\")","v":"Datum"}]
[null,null,"NOTFALLKONTAKT",{"$f":"IFERROR(VLOOKUP(KursteilnehmerName,Kursteilnehmer[],6,FALSE),\"\")","v":"Kontakt 1"}]
[null,null,"TELEFONNR. IM NOTFALL:",{"$f":"IFERROR(VLOOKUP(KursteilnehmerName,Kursteilnehmer[],7,FALSE),\"\")","v":"Telefonnr. im Notfall"}]
[null,null,"ARZT",{"$f":"IFERROR(VLOOKUP(KursteilnehmerName,Kursteilnehmer[],8,FALSE),\"\")","v":"Arzt 1"}]
[null,null,"TELEFONNR. DES ARZTES",{"$f":"IFERROR(VLOOKUP(KursteilnehmerName,Kursteilnehmer[],9,FALSE),\"\")","v":"Telefonnr. des Arztes"}]